[Event "Almaty Open 2017"]
[Site "Almaty"]
[Date "2017.10.09"]
[Round "7"]
[White "Akhmetov, Ayan"]
[Black "Ankudinova, Yelena"]
[Result "1-0"]
[ECO "B06"]
[WhiteElo "2397"]
[BlackElo "2130"]
[Annotator "NA"]
[PlyCount "87"]
[EventDate "2017.??.??"]
[EventType "swiss"]
[EventCountry "KAZ"]
[SourceTitle "playchess.com"]
[Source "ChessBase"]
[SourceQuality "1"]
[TimeControl "5400+30"]

{[%evp 8,80,44,27,67,60,95,70,95,84,110,123,113,46,91,94,110,106,120,64,43,48,279,271,324,291,283,246,218,245,230,32767,421,423,431,454,553,367,316,150,171,43,29,16,21,30,43,48,40,29,18,18,126,112,182,184,226,255,262,-7,0,-5,0,0,0,0,0,0,0,0,22,16,8,0,106]} 1. e4 {[%emt 0:06:36]} g6 {[%emt 0:04:17]} 2. d4 {[%emt 0:01:08]} Bg7 {[%emt 0:00:07]} 3. f4 {[%emt 0:00:37]} d6 {[%emt 0:01:25]} 4. Nf3 {[%emt 0:00:20]} Nf6 {[%emt 0:00:42]} 5. Bd3 {[%emt 0:00:05] LiveBook: 38 Games} Bg4 {[%emt 0:07:15] B07: Pirc Defence: Miscellaneous Systems} (5... O-O 6. O-O Nc6 7. Qe1 d5 8. e5 Ne4 9. c4 f5 10. cxd5 Qxd5 11. Nc3 Nxc3 12. bxc3 e6 13. Bd2 b6 14. h4 Qd8 {1-0 (48) Kaczmarek,A (2301)-Drazic,S (2422) Krakow 2015}) 6. O-O {[%emt 0:00:42]} c6 {[%emt 0:11:12]} 7. Be3 {[%emt 0:01:40]} Nbd7 {[%emt 0:01:11]} 8. Nbd2 {[%emt 0:00:27]} Qc7 $146 {[%emt 0:01:01]} 9. h3 {[%emt 0:01:08]} Bxf3 {[%emt 0:00:07]} 10. Nxf3 {[%emt 0:00:29]} (10. Qxf3 $16 O-O 11. c3 b5 12. f5 a5 13. h4 {1-0 (24) Ramdat Tewarie,J (1897)-Veer,W (1914) Paramaribo 2012}) 10... e6 {[%emt 0:05:29]} 11. c4 {[%emt 0:01:19]} O-O {[%emt 0:16:51]} 12. e5 {[%emt 0:04:18]} Ne8 {[%emt 0:01:56]} 13. c5 {[%emt 0:01:37]} dxc5 $1 {[%emt 0:05:34]} 14. dxc5 {[%emt 0:00:01]} f6 $2 {[%emt 0:04:55]} (14... Qd8 $14) 15. Bc4 {[%emt 0:10:38]} Rd8 {[%emt 0:00:12]} 16. Bxe6+ {[%emt 0:00:33]} Kh8 {[%emt 0:00:03]} 17. Qb3 {[%emt 0:00:23]} fxe5 {[%emt 0:00:32]} 18. Ng5 {[%emt 0:00:43]} exf4 {[%emt 0:01:34] [#]} 19. Bxf4 $1 {[%emt 0:03:28]} Bd4+ {[%emt 0:11:02]} (19... Qa5 $142) 20. Be3 {[%emt 0:00:30]} Bxe3+ {[%emt 0:00:30]} 21. Qxe3 {[%emt 0:00:06]} Ndf6 {[%emt 0:00:27]} 22. Rae1 {[%emt 0:01:26]} Qg7 {[%emt 0:00:47]} 23. Bb3 {[%emt 0:00:43]} ({White should try} 23. Qb3 $18) 23... Nc7 {[%emt 0:00:17]} 24. Qe7 {[%emt 0:02:19]} (24. Qf4 $18) 24... Rd7 {[%emt 0:00:15]} 25. Qe5 {[%emt 0:01:54]} h6 $1 {[%emt 0:02:11]} 26. Nf3 {[%emt 0:22:04]} Nfd5 {[%emt 0:02:24]} 27. Qg3 {[%emt 0:00:15]} Rdf7 {[%emt 0:01:55]} 28. Rf2 {[%emt 0:01:24]} g5 {[%emt 0:00:31]} 29. Rfe2 {[%emt 0:01:21]} Qf6 {[%emt 0:01:06] [#]} (29... Nf4 $11 {remains equal.}) 30. Bxd5 $1 {[%emt 0:04:11]} Nxd5 {[%emt 0:00:23]} 31. Re6 {[%emt 0:00:09]} Qg7 {[%emt 0:00:11] [#]} 32. Ne5 $1 {[%emt 0:01:46]} Rf6 {[%emt 0:00:34]} 33. Ng4 $2 {[%emt 0:00:16]} (33. Rd6 $18) 33... Rxe6 {[%emt 0:01:46]} 34. Rxe6 {[%emt 0:00:56]} Qxb2 {[%emt 0:05:25]} 35. Kh2 {[%emt 0:03:21]} Qd4 {[%emt 0:00:47]} 36. Rxh6+ {[%emt 0:00:37]} Kg7 {[%emt 0:00:02]} 37. Rd6 {[%emt 0:00:01]} Qf4 {[%emt 0:00:19]} 38. Ne5 {[%emt 0:00:09]} Nf6 {[%emt 0:00:41]} 39. Qxf4 {[%emt 0:01:05]} gxf4 {[%emt 0:00:02]} 40. Nd3 {[%emt 0:00:21]} Rf7 $16 {[%emt 0:00:33]} (40... Nd5 $11) 41. Nxf4 {[%emt 0:03:11]} Ne4 {[%emt 0:00:03]} 42. Ne6+ {[%emt 0:04:22]} Kf6 {[%emt 0:00:10]} 43. Rd4 {[%emt 0:00:01]} Ke5 {[%emt 0:03:39]} 44. Rxe4+ {[%emt 0:00:20]} 1-0